bitfinex/quotes_ETHUSD_20251118
["timestamp","ask_amount","ask_price","bid_price","bid_amount"]
[1763484934439,0.29330882,3159.1,3158.2,0.4847]
[1763484934647,0.29330882,3159.2,3158.3,0.405504]
[1763484934813,0.1835,3159.8,3159.0,0.405504]
[1763484934814,0.29330882,3159.5,3159.0,0.405504]
[1763484935145,0.29330882,3159.4,3159.0,0.405504]
[1763484935348,0.29330882,3159.3,3159.0,0.405504]
[1763484935650,0.77720882,3159.7,3159.0,0.405504]
[1763484935851,0.29330882,3159.6,3159.0,0.405504]
[1763484936015,0.29330882,3159.5,3159.0,0.405504]
[1763484936214,0.29330882,3159.4,3159.0,0.405504]
[1763484936429,0.29330882,3159.3,3159.0,0.405504]
[1763484936645,0.76670882,3159.6,3159.0,0.405504]
[1763484936910,0.29330882,3159.5,3158.8,0.1581]
[1763484937113,0.29330882,3159.5,3158.3,0.4847]
[1763484937114,0.29330882,3159.4,3158.4,0.405504]
[1763484937340,0.76670882,3159.3,3157.8,0.1143]
[1763484937614,0.29330882,3159.2,3157.9,0.464]
[1763484937814,0.29330882,3159.1,3158.0,0.405504]
[1763484938319,0.76670882,3159.0,3158.0,0.405504]
[1763484938621,0.29330882,3158.9,3158.0,0.405504]
[1763484938821,0.29330882,3158.8,3158.0,0.405504]
[1763484939011,0.29330882,3158.8,3158.0,0.869504]
[1763484939413,0.29330882,3159.2,3158.2,0.405504]
[1763484939713,0.29330882,3159.1,3158.2,0.405504]
[1763484940025,0.29330882,3159.4,3158.3,0.405504]
[1763484940224,0.29330882,3159.3,3158.3,0.405504]
[1763484940433,0.29330882,3159.2,3158.5,0.405504]
[1763484940622,0.29330882,3159.4,3158.5,0.405504]
[1763484940952,0.29330882,3159.3,3158.6,0.405504]
[1763484941133,0.29330882,3159.2,3158.6,0.405504]
[1763484941444,0.29250882,3159.6,3158.6,0.405504]
[1763484941634,0.4734,3159.6,3158.6,0.405504]
[1763484941835,0.4734,3159.6,3158.2,0.405504]
[1763484942654,0.656,3158.3,3157.8,0.001]
[1763484942839,6.94534125,3159.6,3157.8,0.001]
[1763484942840,0.4734,3159.6,3157.8,0.465]
[1763484943015,0.4734,3159.5,3158.2,0.497]
[1763484943419,0.4734,3159.5,3158.3,0.1449626]
[1763484943754,0.4734,3159.5,3158.4,0.405504]
[1763484948456,0.4734,3159.5,3158.1,0.001]
[1763484948644,0.90699264,3159.3,3158.1,0.001]
[1763484948970,0.4734,3159.5,3158.1,0.001]
[1763484948971,0.656,3158.2,3158.1,0.001]
[1763484949171,4.4714,3158.2,3158.1,0.001]
[1763484949357,2.03639264,3158.2,3158.1,0.001]
[1763484949736,1.38279264,3158.2,3158.1,0.001]
[1763484949953,0.90699264,3158.2,3158.1,0.001]
[1763484950459,0.1802,3158.8,3158.1,0.6113]
[1763484951078,0.4754,3159.6,3158.7,0.497]
[1763484951261,0.4734,3159.5,3158.7,0.497]
[1763484951497,0.4734,3159.5,3158.2,0.869504]
[1763484951662,0.4734,3159.5,3158.3,0.464]
[1763484951851,0.002,3159.6,3158.3,0.464]
[1763484951852,0.002,3159.6,3158.4,0.405504]
[1763484952370,0.002,3159.6,3158.6,0.405504]
[1763484952981,0.4754,3159.6,3158.6,0.405504]
[1763484953481,0.29648594,3159.5,3158.6,0.405504]
[1763484953683,0.4754,3159.6,3158.6,0.405504]
[1763484953684,0.29648594,3159.4,3158.6,0.405504]
[1763484953890,0.29648594,3159.3,3158.6,0.405504]
[1763484954076,0.29648594,3159.2,3158.6,0.405504]
[1763484954388,0.29648594,3159.1,3158.6,0.405504]
[1763484954592,0.29648594,3159.5,3158.6,0.405504]
[1763484954790,0.29648594,3159.4,3158.5,0.405504]
[1763484955087,0.29648594,3159.3,3158.5,0.405504]
[1763484955293,0.29648594,3159.2,3158.5,0.405504]
[1763484955583,0.29648594,3159.1,3158.5,0.405504]
[1763484955899,0.29648594,3159.5,3158.6,0.405504]
[1763484956055,0.29648594,3159.4,3158.6,0.405504]
[1763484956256,0.29648594,3159.3,3158.6,0.405504]
[1763484956458,0.29648594,3159.2,3158.6,0.405504]
[1763484956669,0.002,3159.6,3158.8,0.405504]
[1763484956873,0.29665154,3159.5,3158.8,0.405504]
[1763484957076,0.29665154,3159.4,3158.5,0.405504]
[1763484957380,0.29665154,3159.3,3158.5,0.405504]
[1763484957588,0.29665154,3159.2,3158.5,0.405504]
[1763484957890,0.29665154,3159.1,3158.5,0.405504]
[1763484958059,0.29665154,3159.5,3158.5,0.405504]
[1763484958387,0.77005154,3159.4,3158.5,0.405504]
[1763484958686,0.29665154,3159.3,3158.5,0.405504]
[1763484958994,0.29665154,3159.2,3158.5,0.405504]
[1763484959192,0.29665154,3159.1,3158.5,0.405504]
[1763484959397,0.29665154,3159.1,3158.4,0.464]
[1763484959398,0.656,3158.6,3158.1,0.001]
[1763484959555,0.1802,3158.9,3158.2,0.5773]
[1763484959754,0.29674602,3158.8,3158.2,0.1133]
[1763484960197,0.77014602,3158.7,3158.1,0.001]
[1763484960354,0.1802,3158.9,3158.1,0.001]
[1763484960355,0.77014602,3158.6,3158.1,0.001]
[1763484960695,0.1802,3158.9,3158.1,0.001]
[1763484960696,0.6536,3158.9,3158.1,0.001]
[1763484960898,0.4758,3158.2,3158.1,0.001]
[1763484961055,0.77016999,3158.8,3158.1,0.001]
[1763484961056,0.29676999,3158.7,3158.1,0.001]
[1763484961260,0.29676999,3158.6,3158.1,0.001]
[1763484961458,0.29676999,3158.5,3158.1,0.001]
[1763484961661,0.4758,3158.2,3158.1,0.001]
[1763484962099,1.24596999,3158.2,3158.1,0.001]
[1763484962487,2.15296263,3158.2,3158.1,0.001]
[1763484962661,2.83747257,3158.2,3158.1,0.001]
[1763484962861,4.23281363,3158.2,3158.1,0.001]
[1763484963097,14.60602381,3158.2,3158.1,0.001]
[1763484963270,12.90352381,3158.2,3158.1,0.001]
[1763484963617,10.61672681,3158.2,3158.1,0.001]
[1763484963806,9.81796981,3158.2,3158.1,0.001]
[1763484964161,6.46323181,3158.2,3158.1,0.001]
[1763484964362,6.14523181,3158.2,3158.1,0.001]
[1763484964775,5.53754481,3158.2,3158.1,0.001]
[1763484964995,5.26174481,3158.2,3158.1,0.001]
[1763484965228,5.92500181,3158.2,3158.1,0.001]
[1763484965411,2.15296263,3158.2,3158.1,0.001]
[1763484965582,0.6536,3158.9,3158.1,0.001]
[1763484965783,0.29600259,3158.8,3158.1,0.001]
[1763484965987,0.4758,3158.2,3158.1,0.001]
[1763484966407,0.29600259,3158.5,3158.1,0.001]
[1763484966610,0.29600259,3158.8,3158.1,0.6035]
[1763484966927,0.4731,3158.2,3158.1,0.001]
[1763484967217,0.29600259,3158.6,3158.1,0.001]
[1763484967431,0.77130259,3158.7,3158.1,0.001]
[1763484967596,1.13872486,3159.6,3158.3,0.405504]
[1763484967597,0.29600259,3158.6,3158.3,0.405504]
[1763484967786,0.29600259,3159.0,3158.3,0.405504]
[1763484967991,0.1956,3158.9,3158.3,0.405504]
[1763484968202,0.1956,3158.9,3158.1,0.001]
[1763484968203,0.4731,3158.4,3158.1,0.001]
[1763484968498,0.77130259,3158.8,3158.1,0.001]
[1763484968688,0.29600259,3158.8,3158.1,0.001]
[1763484968892,0.4753,3159.4,3158.1,0.001]
[1763484969117,0.90699264,3159.2,3158.1,0.001]
[1763484969322,0.4753,3159.4,3158.1,0.001]
[1763484969323,0.29600259,3159.1,3158.1,0.001]
[1763484969518,0.29600259,3159.0,3158.1,0.001]
[1763484969685,0.29600259,3158.9,3158.1,0.001]
[1763484969887,0.4753,3158.8,3158.1,0.001]
[1763484970311,0.29600259,3158.8,3158.1,0.0326646]
[1763484970541,0.1956,3158.9,3158.1,0.001]
[1763484970909,0.49160259,3158.9,3158.1,0.001]
[1763484972013,0.4753,3158.8,3158.1,0.001]
[1763484972211,0.29600259,3158.7,3158.1,0.001]
[1763484972729,0.4731,3158.2,3158.1,0.001]
[1763484973104,2.15139523,3158.2,3158.1,0.001]
[1763484973424,2.15139523,3158.2,3158.0,0.001]
[1763484973425,0.90699264,3158.1,3158.0,0.001]
[1763484973591,0.4702,3157.9,3157.5,0.001]
[1763484973791,1.49069523,3157.8,3157.5,0.001]
[1763484974012,1.96599523,3157.8,3157.5,0.001]
[1763484975394,1.49069523,3157.8,3157.5,0.001]
[1763484975995,1.19469264,3157.8,3157.5,0.001]
[1763484976397,1.66999264,3157.8,3157.5,0.001]
[1763484976692,1.96568631,3157.8,3157.5,0.001]
[1763484976893,1.66999264,3157.8,3157.5,0.001]
[1763484977201,0.90699264,3157.8,3157.7,0.4795]
[1763484977420,0.90699264,3157.8,3157.7,0.001]
[1763484978617,1.85539264,3157.8,3157.7,0.001]
[1763484978803,2.1510738,3157.8,3157.7,0.001]
[1763484979333,1.85539264,3157.8,3157.7,0.001]
[1763484979630,0.90699264,3157.8,3157.7,0.001]
[1763484980624,1.85369264,3157.8,3157.7,0.001]
[1763484980946,2.1492975,3157.8,3157.7,0.001]
[1763484981874,0.29560486,3157.8,3157.7,0.4995]
[1763484982158,0.29554952,3158.5,3157.7,0.4995]
[1763484982555,0.1956,3158.9,3157.7,0.001]
[1763484982556,0.4908,3158.4,3157.7,0.001]
[1763484982851,0.29554952,3158.7,3157.7,0.001]
[1763484983146,0.29554952,3158.6,3157.7,0.001]
[1763484983343,0.002,3158.2,3157.7,0.001]
[1763484983726,0.4928,3158.2,3157.7,0.001]
[1763484984126,0.29754952,3158.2,3157.7,0.001]
[1763484984329,0.4908,3158.1,3157.7,0.001]
[1763484984512,0.4559,3157.8,3157.7,0.001]
[1763484986046,0.9467,3157.8,3157.7,0.001]
[1763484986218,1.24224952,3157.8,3157.7,0.001]
[1763484986418,0.29554952,3157.8,3157.7,0.001]
[1763484986718,0.78834952,3158.2,3157.7,0.001]
[1763484986919,0.29554952,3158.1,3157.7,0.001]
[1763484987120,0.78634952,3158.1,3157.7,0.001]
[1763484987347,0.29554952,3158.0,3157.7,0.001]
[1763484987653,0.002,3158.2,3158.0,0.4985]
[1763484988246,0.002,3158.2,3157.7,0.001]
[1763484988447,0.0012,3158.2,3157.7,0.001]
[1763484988656,0.29737621,3158.2,3157.7,0.001]
[1763484988855,0.0012,3158.2,3157.7,0.001]
[1763484989227,0.0012,3158.2,3157.7,0.4645]
[1763484989848,0.29737621,3158.2,3157.7,0.4645]
[1763484990048,0.0012,3158.2,3157.7,0.4645]
[1763484990352,0.29617621,3158.1,3157.7,0.001]
[1763484994755,0.0012,3158.2,3158.0,0.4985]
[1763484995004,0.0012,3158.2,3158.1,0.6225]
[1763484995473,0.0012,3158.2,3157.7,0.001]
[1763484995662,0.4571,3158.2,3157.7,0.001]
[1763484995860,0.0012,3158.2,3157.7,0.4645]
[1763484996385,0.0012,3158.2,3157.7,0.001]
[1763484996695,0.29737621,3158.2,3157.7,0.001]
[1763484996903,0.0012,3158.2,3157.7,0.001]
[1763484997112,0.0012,3158.2,3157.7,0.4716]
[1763484997388,0.0012,3158.2,3158.1,0.6111]
[1763484998295,0.0012,3158.2,3157.8,0.405504]
[1763484998608,0.0012,3158.2,3157.9,0.405504]
[1763484998902,0.0012,3158.2,3157.7,0.001]
[1763484999260,0.0012,3158.2,3158.1,0.4871]
[1763484999456,0.0012,3158.2,3158.1,0.6111]
[1763484999698,0.0012,3158.2,3158.1,0.4871]
[1763485000878,0.0012,3158.2,3157.7,0.001]
[1763485001562,0.4744,3158.2,3157.7,0.001]
[1763485001759,0.297818,3158.2,3157.7,0.001]
[1763485001964,0.0012,3158.2,3157.7,0.001]
[1763485002398,0.4778,3157.8,3157.7,0.001]
[1763485002613,5.02341064,3157.8,3157.7,0.001]
[1763485002815,6.18055564,3157.8,3157.7,0.001]
[1763485003262,6.18055564,3157.8,3157.4,0.001]
[1763485003263,0.4778,3157.6,3157.4,0.001]
[1763485003467,6.64155264,3157.4,3157.1,0.001]
[1763485003666,8.29698464,3157.4,3157.1,0.001]
[1763485003888,6.17875564,3157.4,3157.1,0.001]
[1763485005985,2.83675564,3157.4,3157.3,0.001]
[1763485008498,10.15448464,3157.4,3157.3,0.001]
[1763485008794,2.83675564,3157.4,3157.3,0.001]
[1763485009494,6.74140164,3157.4,3157.3,0.001]
[1763485010398,11.48671964,3157.4,3157.3,0.001]
[1763485011000,13.73521964,3157.4,3157.3,0.001]
[1763485011295,12.73521964,3157.4,3157.3,0.001]
[1763485011696,18.09627164,3157.4,3157.3,0.001]
[1763485011895,37.37934764,3157.4,3157.3,0.001]
[1763485012201,28.83623864,3157.4,3157.3,0.001]
[1763485012396,26.18035264,3157.4,3157.3,0.001]
[1763485012700,24.91785264,3157.4,3157.3,0.001]
[1763485012890,14.97993964,3157.4,3157.3,0.001]
[1763485013395,14.95393964,3157.4,3157.3,0.001]
[1763485014201,8.82275564,3157.4,3157.3,0.001]
[1763485014503,8.61201064,3157.4,3157.3,0.001]
[1763485014690,6.756618,3157.4,3157.3,0.001]
[1763485014879,0.4744,3158.2,3157.3,0.4881]
[1763485015803,0.0012,3158.2,3157.3,0.9587]
[1763485016003,0.0012,3158.2,3157.4,0.4706]
[1763485016708,0.0012,3158.2,3157.5,0.4706]
[1763485018174,0.0012,3158.2,3158.1,0.6111]
[1763485018374,0.0012,3158.2,3158.1,1.0817]
[1763485021419,0.0012,3158.2,3158.1,0.6111]
[1763485022339,0.0012,3158.2,3158.1,1.487204]
[1763485022534,0.002,3158.6,3158.2,0.405504]
[1763485022829,0.002,3158.6,3158.5,0.892604]
[1763485022998,0.002,3158.6,3158.5,1.363204]
[1763485024687,0.002,3158.6,3158.5,0.4871]
[1763485024923,0.002,3158.6,3158.5,0.9577]
[1763485025125,0.002,3158.6,3158.5,0.4871]
[1763485025622,0.002,3158.6,3158.5,1.363204]
[1763485026299,0.002,3158.6,3158.5,0.4871]
[1763485026623,0.002,3158.6,3158.5,0.9492]
[1763485027215,0.002,3158.6,3158.5,0.4871]
[1763485027987,0.002,3158.6,3158.5,0.9492]
[1763485028235,0.002,3158.6,3158.5,1.354704]
[1763485031430,0.002,3158.6,3158.5,1.58087366]
[1763485034124,0.002,3158.9,3158.6,0.405504]
[1763485034326,0.002,3158.9,3158.8,1.79749664]
[1763485034739,0.002,3158.9,3158.8,2.25959664]
[1763485035648,0.0012,3158.9,3158.8,2.25959664]
[1763485035841,0.0012,3158.9,3158.8,3.13213038]
[1763485036270,0.0012,3158.9,3158.8,1.81963374]
[1763485036544,0.0012,3158.9,3158.8,0.9471]
[1763485036850,0.0012,3158.9,3158.8,0.485]
[1763485037455,1.1373,3158.9,3158.1,0.125]
[1763485037751,0.6822,3158.9,3158.1,0.001]
[1763485037915,0.4906,3158.8,3158.1,0.001]
[1763485038514,0.4551,3158.2,3158.1,0.001]
[1763485038714,0.4906,3158.8,3158.1,0.001]
[1763485040043,0.4551,3158.2,3158.1,0.001]
[1763485040433,0.4906,3158.8,3158.1,0.001]
[1763485041256,0.4539,3158.2,3158.1,0.001]
[1763485041659,0.9322,3158.2,3158.1,0.001]
[1763485042952,1.22659096,3158.2,3158.1,0.001]
[1763485046666,0.9322,3158.2,3158.1,0.001]
[1763485047166,1.22706877,3158.2,3158.1,0.001]
[1763485047540,0.29486877,3158.2,3158.1,0.001]
[1763485047765,0.29486877,3158.6,3158.1,0.001]
[1763485047963,0.29486877,3158.8,3158.2,0.1228]
[1763485048167,0.0012,3158.9,3158.3,0.4371666]
[1763485048361,0.0012,3158.9,3158.8,0.857604]
[1763485048735,0.0012,3158.9,3158.8,1.353204]
[1763485048975,0.0012,3158.9,3158.8,0.857604]
[1763485049471,0.0012,3158.9,3158.8,1.353204]
[1763485054588,0.002,3159.0,3158.9,0.405504]
[1763485054748,0.002,3159.0,3158.9,1.57922366]
[1763485056157,0.0009,3159.6,3159.5,1.002104]
[1763485056494,0.03928571,3160.8,3159.6,0.405504]
[1763485056656,0.03928571,3160.8,3159.6,0.863904]
[1763485057055,0.03928571,3160.8,3159.8,0.405504]
[1763485058770,0.1826,3160.9,3160.0,0.405504]
[1763485059089,0.3488,3160.9,3159.6,0.405504]
[1763485059391,0.3488,3160.9,3159.6,0.863904]
[1763485059578,0.167,3160.8,3159.6,0.863904]
[1763485059778,0.167,3160.8,3159.8,0.405504]
[1763485060198,0.167,3160.8,3160.0,0.405504]
[1763485060360,0.1818,3160.9,3160.0,0.405504]
[1763485061459,0.167,3160.8,3159.6,0.4584]
[1763485061758,0.167,3160.8,3159.7,0.405504]
[1763485061962,0.167,3160.8,3159.6,0.405504]
[1763485062164,0.167,3160.8,3159.6,0.863904]
[1763485063406,0.167,3160.8,3159.6,0.405504]
[1763485064496,0.167,3160.8,3159.6,0.863904]
[1763485064694,0.1961,3161.1,3159.6,0.863904]
[1763485064994,0.167,3161.3,3159.8,0.405504]
[1763485065296,0.167,3161.3,3160.0,0.405504]
[1763485065681,0.167,3161.3,3160.2,0.405504]
[1763485066085,0.167,3161.3,3160.4,0.405504]
[1763485066779,0.167,3161.3,3160.3,0.405504]
[1763485066959,0.167,3161.3,3160.1,0.405504]
[1763485067502,0.167,3161.3,3160.2,0.405504]
[1763485068485,0.167,3161.3,3159.6,0.405504]
[1763485068696,0.167,3161.3,3160.2,0.405504]
[1763485069479,0.167,3161.3,3159.6,0.405504]
[1763485069796,0.167,3161.3,3160.3,0.405504]
[1763485070782,0.167,3161.3,3160.0,0.405504]
[1763485071214,0.167,3161.3,3159.5,0.1445]
[1763485071412,0.167,3161.3,3159.6,0.4584]
[1763485071612,0.167,3161.3,3159.7,0.405504]
[1763485072016,0.167,3161.3,3159.8,0.4584]
[1763485072622,0.167,3161.3,3158.3,3.86]
[1763485072623,0.0986,3161.0,3160.0,0.1]
[1763485072831,0.39248017,3161.0,3160.0,0.1]
[1763485073118,0.0996,3160.1,3160.0,0.1]
[1763485073687,0.29388017,3160.9,3160.0,0.5711]
[1763485073882,0.29388017,3160.9,3160.0,0.1]
[1763485073883,0.2898,3160.8,3160.0,0.1]
[1763485075127,0.2898,3160.8,3160.1,0.405504]
[1763485075286,0.0986,3161.0,3160.1,0.405504]
[1763485075624,0.2898,3160.9,3160.1,0.405504]
[1763485076123,0.29667415,3161.3,3160.8,0.4711]
[1763485076421,0.002,3161.3,3160.8,0.4711]
[1763485076730,0.002,3161.3,3160.9,0.405504]
[1763485077714,0.2899,3161.3,3160.9,0.405504]
[1763485077911,0.58457415,3161.3,3160.9,0.405504]
[1763485078191,0.29467415,3161.2,3160.6,0.405504]
[1763485078398,0.58257415,3161.2,3160.0,0.5584]
[1763485078601,0.29467415,3161.1,3160.1,0.405504]
[1763485079124,0.29467415,3161.1,3160.3,0.405504]
[1763485079426,0.29467415,3161.0,3160.3,0.405504]
[1763485079595,0.58257415,3161.1,3160.3,0.405504]
[1763485079919,0.29467415,3161.0,3160.3,0.405504]
[1763485080118,0.29467415,3161.2,3160.4,0.405504]
[1763485080426,0.29467415,3161.1,3160.4,0.405504]
[1763485080623,0.29467415,3161.0,3160.5,0.405504]
[1763485080827,0.29467415,3161.2,3160.5,0.405504]
[1763485081018,0.002,3161.3,3161.0,0.405504]
[1763485081019,0.29467415,3161.1,3161.0,0.405504]
[1763485081523,0.29467415,3161.1,3160.7,0.405504]
[1763485081836,0.29467415,3161.0,3160.7,0.405504]
[1763485082138,0.29467415,3161.2,3160.7,0.405504]
[1763485082291,0.29467415,3161.1,3160.1,0.405504]
[1763485082491,0.29387415,3161.0,3160.9,0.876604]
[1763485082722,0.29387415,3161.2,3160.2,0.405504]
[1763485082911,0.002,3161.3,3160.2,0.863904]
[1763485083310,0.002,3161.3,3160.4,0.405504]
[1763485083829,0.002,3161.3,3160.6,0.405504]
[1763485084835,0.002,3161.3,3161.2,1.059904]
[1763485085348,0.002,3161.3,3161.2,0.405504]
[1763485085560,0.002,3161.3,3161.2,0.876604]
[1763485086159,0.002,3161.3,3161.2,0.405504]
[1763485086358,0.0049,3161.3,3161.2,0.405504]
[1763485086727,0.002,3161.3,3161.2,0.405504]
[1763485086927,0.002,3161.3,3161.2,1.378304]
[1763485087851,0.002,3161.3,3161.2,0.888004]
[1763485088056,0.002,3161.3,3161.2,0.405504]
[1763485088252,0.002,3161.3,3161.2,0.888004]
[1763485088420,0.002,3161.3,3161.2,1.378304]
[1763485088822,0.002,3161.3,3161.2,0.888004]
[1763485089351,0.002,3161.3,3161.2,1.378304]
[1763485089528,0.002,3161.3,3161.2,0.888004]
[1763485089728,0.002,3161.3,3161.2,0.405504]
[1763485090878,0.0049,3161.3,3161.0,0.001]
[1763485091162,0.29,3161.3,3161.0,0.001]
[1763485091324,0.0029,3161.1,3161.0,0.001]
[1763485092177,0.288,3161.1,3161.0,0.001]
[1763485092931,0.0029,3161.1,3161.0,0.001]
[1763485093136,0.288,3161.1,3161.0,0.001]
[1763485093635,0.0029,3161.1,3161.0,0.001]
[1763485093867,0.002,3161.3,3161.0,0.001]
[1763485094373,0.002,3161.3,3161.2,0.405504]
[1763485095350,0.0049,3161.3,3161.2,0.405504]
[1763485096054,0.58613256,3161.3,3161.0,0.001]
[1763485096263,0.0029,3161.1,3161.0,0.001]
[1763485096556,0.29903256,3161.1,3161.0,0.001]
[1763485097272,0.29613256,3161.1,3161.0,0.001]
[1763485097584,0.29613256,3161.2,3161.0,0.001]
[1763485097798,0.29613256,3161.1,3161.0,0.001]
[1763485097978,0.002,3161.3,3161.0,0.001]
[1763485098151,0.2879,3161.1,3161.0,0.001]
[1763485098498,0.002,3161.3,3161.0,0.001]
[1763485098785,0.29813256,3161.3,3161.0,0.001]
[1763485098949,0.2879,3161.1,3161.0,0.001]
[1763485100751,0.29613256,3161.2,3161.0,0.001]
[1763485101092,0.0029,3161.1,3161.0,0.001]
[1763485101266,0.29903256,3161.1,3161.0,0.001]
[1763485101810,0.0029,3161.1,3161.0,0.001]
[1763485102096,0.29903256,3161.1,3161.0,0.001]
[1763485102393,0.0029,3161.1,3161.0,0.001]
[1763485102602,0.29903256,3161.1,3161.0,0.001]
[1763485102756,0.0029,3161.1,3161.0,0.001]
[1763485102952,0.29613256,3161.1,3161.0,0.904604]
[1763485103202,0.29613256,3161.2,3161.0,0.406504]
[1763485103352,0.002,3161.3,3161.0,0.001]
[1763485103353,0.29613256,3161.1,3161.0,0.001]
[1763485103556,0.29613256,3161.2,3161.0,0.001]
[1763485103860,0.29613256,3161.1,3161.0,0.001]
[1763485104185,0.002,3161.3,3161.0,0.001]
[1763485104354,0.29613256,3161.2,3161.0,0.001]
[1763485104873,0.002,3161.3,3161.0,0.001]
[1763485105768,0.29668551,3161.2,3161.0,0.001]
[1763485106202,0.53588551,3161.1,3161.0,0.001]
[1763485106358,0.2419,3161.1,3161.0,0.001]
[1763485107714,0.7258,3161.1,3161.0,0.001]
[1763485109769,8.12720364,3161.1,3161.0,0.001]
[1763485110074,2.31528918,3161.1,3161.0,0.001]
[1763485110273,3.17025531,3161.1,3161.0,0.001]
[1763485111489,2.31528918,3161.1,3161.0,0.001]
[1763485111688,3.29921864,3161.0,3160.6,0.001]
[1763485111895,0.203,3160.7,3160.6,0.001]
[1763485112108,9.13311613,3160.7,3160.3,0.001]
[1763485112406,0.1404,3160.4,3160.3,0.001]
[1763485112766,0.6268,3160.4,3160.3,0.001]
[1763485112970,7.60036118,3160.4,3160.1,2.86]
[1763485113182,0.91319264,3160.2,3160.1,2.86]
[1763485113378,4.33303918,3160.2,3160.1,2.86]
[1763485113679,12.45353731,3160.2,3158.5,0.001]
[1763485113891,10.97209818,3160.1,3158.5,0.406504]
[1763485114080,10.97209818,3160.1,3158.5,0.001]
[1763485114291,6.45369818,3160.1,3158.6,0.4648]
[1763485114592,6.45369818,3160.1,3159.1,0.1942]
[1763485114593,2.21488918,3160.1,3159.1,0.1942]
[1763485114791,2.21488918,3160.1,3158.9,0.001]
[1763485115302,1.53239264,3160.1,3158.9,0.001]
[1763485115502,2.21353794,3160.1,3158.9,0.001]
[1763485116005,2.21353794,3160.1,3159.1,0.1942]
[1763485116205,0.6872,3160.7,3159.6,0.4797]
[1763485116378,0.4977,3160.6,3159.6,0.4797]
[1763485116581,0.134,3160.1,3159.6,0.4797]
[1763485116909,0.134,3160.1,3159.4,0.405504]
[1763485117105,0.628,3160.1,3159.4,0.405504]
[1763485117878,0.628,3160.1,3159.1,0.1942]
[1763485118213,0.628,3160.1,3159.0,0.405504]
[1763485118510,0.9233865,3160.1,3159.0,0.405504]
[1763485119015,0.9233865,3160.1,3159.1,0.184]
[1763485120591,0.6959,3160.7,3159.6,0.4797]
[1763485120923,0.79291622,3160.6,3159.6,0.4797]
[1763485121424,0.4901,3160.1,3159.6,0.4797]
[1763485121590,0.4901,3160.1,3159.5,0.405504]
[1763485122312,0.4901,3160.1,3159.1,0.184]
[1763485122488,0.4901,3160.1,3159.3,0.4797]
[1763485123804,0.6316,3160.1,3159.3,0.4797]
[1763485124235,1.83380886,3160.1,3159.3,0.4797]
[1763485124533,0.90699264,3160.0,3159.2,0.405504]
[1763485124731,0.1415,3160.0,3159.2,0.405504]
[1763485124919,0.1838,3159.9,3159.2,0.405504]
[1763485125323,0.6815,3159.9,3159.2,0.405504]
[1763485125836,0.79290886,3159.8,3159.6,0.001]
[1763485126337,0.6017,3159.7,3159.6,0.001]
[1763485126634,0.89690886,3159.7,3159.6,0.001]
[1763485127452,11.6979515,3159.7,3159.6,0.001]
[1763485127603,5.1459015,3159.7,3159.6,0.001]
[1763485127803,14.63257479,3159.7,3159.6,0.001]
[1763485128002,3.342,3159.5,3159.3,0.001]
[1763485128256,18.33787879,3159.4,3159.3,0.001]
[1763485128403,3.445,3159.0,3158.5,0.001]
[1763485128597,0.90699264,3159.1,3158.5,0.001]
[1763485128598,0.1897,3158.6,3158.5,0.001]
[1763485129004,0.6874,3158.6,3158.5,0.001]
[1763485129248,0.29520886,3158.6,3158.5,0.001]
[1763485129402,0.1084,3158.6,3158.5,0.001]
[1763485129602,0.6014,3158.6,3158.5,0.001]
[1763485130017,0.89660886,3158.6,3158.5,0.001]
[1763485130749,6.13333486,3158.6,3158.5,0.001]
[1763485130913,6.3382395,3158.6,3158.5,0.001]
[1763485131113,4.2840495,3158.6,3158.5,0.001]
[1763485131422,1.8036015,3158.6,3158.5,0.001]
[1763485131609,4.5595235,3158.6,3158.5,0.001]
[1763485131814,4.1952265,3158.6,3158.5,0.001]
[1763485132025,3.9115205,3158.6,3158.5,0.001]
[1763485132641,4.6166295,3158.6,3158.5,0.001]
[1763485132842,1.80299358,3158.6,3158.5,0.001]
[1763485133042,4.66916458,3158.6,3158.5,0.001]
[1763485133821,5.72266458,3158.6,3158.5,0.001]
[1763485134060,1.80299358,3158.6,3158.5,0.001]
[1763485134328,1.30919358,3158.6,3158.5,0.001]
[1763485136629,1.80299358,3158.6,3158.5,0.001]
[1763485137252,9.59368858,3158.6,3158.5,0.001]
[1763485137422,11.02382558,3158.6,3158.5,0.001]
[1763485137740,1.43619685,3158.6,3158.5,0.001]
[1763485137941,4.90900085,3158.6,3158.5,0.001]
[1763485138125,1.80299358,3158.6,3158.5,0.001]
[1763485138441,1.29161506,3158.5,3158.2,0.001]
[1763485138739,7.37002651,3158.3,3158.2,0.001]
[1763485139073,1.00889264,3158.1,3157.8,0.001]
[1763485139210,1.09669264,3157.9,3157.8,0.001]
[1763485139413,5.04095958,3157.9,3157.8,0.001]
[1763485139714,4.15378758,3157.9,3157.8,0.001]
[1763485139913,1.88899358,3157.9,3157.8,0.001]
[1763485140257,4.68771958,3157.9,3157.8,0.001]
[1763485140556,4.16473958,3157.9,3157.8,0.001]
[1763485140757,1.39129358,3157.9,3157.8,0.001]
[1763485141108,1.39129358,3157.9,3157.8,0.4707]
[1763485141109,1.20159358,3157.9,3157.8,0.4707]